[Event "Late-Titled-Tuesday-Blitz-September-05-2023"]
[Site "Chess.com"]
[Date "2023.09.05"]
[Round "8"]
[White "KorolDimitriy75"]
[Black "ChEsper99"]
[Result "1-0"]
[WhiteElo "2346"]
[BlackElo "2183"]
[TimeControl "180+1"]
[EndTime "15:28:33 PDT"]
[Termination "KorolDimitriy75 won on time"]

1. d4 {[%clk 0:03:00.9]} 1... d5 {[%clk 0:02:50.8]} 2. c4 {[%clk 0:03:01]} 2...
c6 {[%clk 0:02:51.1]} 3. Nc3 {[%clk 0:03:01.2]} 3... Nf6 {[%clk 0:02:50.8]} 4.
e3 {[%clk 0:03:01.6]} 4... Bf5 {[%clk 0:02:44.6]} 5. Nf3 {[%clk 0:03:01.6]} 5...
e6 {[%clk 0:02:37]} 6. Bd3 {[%clk 0:03:02]} 6... Bxd3 {[%clk 0:02:36.6]} 7. Qxd3
{[%clk 0:03:02.9]} 7... Be7 {[%clk 0:02:31.7]} 8. O-O {[%clk 0:03:02.8]} 8...
O-O {[%clk 0:02:31.7]} 9. e4 {[%clk 0:03:03]} 9... dxe4 {[%clk 0:02:30.3]} 10.
Nxe4 {[%clk 0:03:03.9]} 10... Nxe4 {[%clk 0:02:31]} 11. Qxe4 {[%clk 0:03:04.6]}
11... Bf6 {[%clk 0:02:18.1]} 12. Bf4 {[%clk 0:03:00.6]} 12... Qb6 {[%clk
0:02:06.9]} 13. b3 {[%clk 0:02:59.2]} 13... a5 {[%clk 0:02:06.7]} 14. Rad1
{[%clk 0:02:51.4]} 14... a4 {[%clk 0:02:05.7]} 15. Rd3 {[%clk 0:02:49.6]} 15...
Na6 {[%clk 0:01:55.6]} 16. Ne5 {[%clk 0:02:07.8]} 16... Rfd8 {[%clk 0:01:43.7]}
17. Rfd1 {[%clk 0:02:02.6]} 17... Nb4 {[%clk 0:01:16]} 18. Rh3 {[%clk
0:01:13.3]} 18... g6 {[%clk 0:01:10]} 19. Nxf7 {[%clk 0:00:51.9]} 19... Kxf7
{[%clk 0:01:04.7]} 20. Rxh7+ {[%clk 0:00:51.1]} 20... Bg7 {[%clk 0:01:03.6]} 21.
Be5 {[%clk 0:00:46.5]} 21... Rg8 {[%clk 0:00:47.5]} 22. Qf4+ {[%clk 0:00:37]}
22... Ke8 {[%clk 0:00:46.9]} 23. Bxg7 {[%clk 0:00:31.2]} 23... axb3 {[%clk
0:00:21.1]} 24. Bf6 {[%clk 0:00:20.6]} 24... bxa2 {[%clk 0:00:05.9]} 25. Qd6
{[%clk 0:00:17.2]} 25... Nd5 {[%clk 0:00:02]} 26. cxd5 {[%clk 0:00:16.6]} 1-0

[Event "Late-Titled-Tuesday-Blitz-September-05-2023"]
[Site "Chess.com"]
[Date "2023.09.05"]
[Round "8"]
[White "realburq"]
[Black "Boorchess"]
[Result "1-0"]
[WhiteElo "2396"]
[BlackElo "2536"]
[TimeControl "180+1"]
[EndTime "15:28:37 PDT"]
[Termination "realburq won on time"]

1. e4 {[%clk 0:03:00.9]} 1... b6 {[%clk 0:02:59.5]} 2. d4 {[%clk 0:03:00.1]}
2... Bb7 {[%clk 0:02:59.7]} 3. Bd3 {[%clk 0:03:00.6]} 3... e6 {[%clk 0:02:59.5]}
4. Qe2 {[%clk 0:02:59.1]} 4... d6 {[%clk 0:02:56.4]} 5. Nf3 {[%clk 0:02:56]}
5... a6 {[%clk 0:02:55.7]} 6. O-O {[%clk 0:02:55.4]} 6... h6 {[%clk 0:02:53.4]}
7. c4 {[%clk 0:02:55.4]} 7... g5 {[%clk 0:02:51.3]} 8. Be3 {[%clk 0:02:52.4]}
8... Ne7 {[%clk 0:02:48.7]} 9. c5 {[%clk 0:02:52.5]} 9... Ng6 {[%clk 0:02:40.7]}
10. cxb6 {[%clk 0:02:27.8]} 10... cxb6 {[%clk 0:02:37.8]} 11. Nc3 {[%clk
0:02:25.8]} 11... Rg8 {[%clk 0:02:35.8]} 12. Rac1 {[%clk 0:02:18.7]} 12... Nd7
{[%clk 0:02:32.7]} 13. Rfd1 {[%clk 0:02:09]} 13... g4 {[%clk 0:01:58.9]} 14. Nd2
{[%clk 0:02:07]} 14... h5 {[%clk 0:01:55.8]} 15. d5 {[%clk 0:01:55.5]} 15... Qf6
{[%clk 0:01:33.6]} 16. dxe6 {[%clk 0:01:49.9]} 16... fxe6 {[%clk 0:01:33.1]} 17.
Nc4 {[%clk 0:01:45.9]} 17... Nh4 {[%clk 0:01:20.2]} 18. Nxb6 {[%clk 0:01:32.9]}
18... Ne5 {[%clk 0:01:02.6]} 19. Kh1 {[%clk 0:01:02.5]} 19... Nxg2 {[%clk
0:00:57.6]} 20. Kxg2 {[%clk 0:00:59.6]} 20... Qh4 {[%clk 0:00:55.4]} 21. Bf4
{[%clk 0:00:51.1]} 21... Qh3+ {[%clk 0:00:35.3]} 22. Kh1 {[%clk 0:00:49.5]}
22... g3 {[%clk 0:00:24]} 23. fxg3 {[%clk 0:00:42.4]} 23... h4 {[%clk
0:00:14.4]} 24. Qh5+ {[%clk 0:00:40.9]} 24... Ke7 {[%clk 0:00:11.2]} 25. Bg5+
{[%clk 0:00:33.4]} 25... Rxg5 {[%clk 0:00:10]} 26. Qxg5+ {[%clk 0:00:34.3]}
26... Ke8 {[%clk 0:00:08.8]} 27. Qh5+ {[%clk 0:00:22.8]} 27... Ke7 {[%clk
0:00:08]} 28. Ncd5+ {[%clk 0:00:19.9]} 28... Bxd5 {[%clk 0:00:07.2]} 29. Rc7+
{[%clk 0:00:20]} 29... Kd8 {[%clk 0:00:04.7]} 30. Qh7 {[%clk 0:00:17.8]} 1-0

[Event "Late-Titled-Tuesday-Blitz-September-05-2023"]
[Site "Chess.com"]
[Date "2023.09.05"]
[Round "8"]
[White "jcmesafischer"]
[Black "GAO"]
[Result "1-0"]
[WhiteElo "2423"]
[BlackElo "2296"]
[TimeControl "180+1"]
[EndTime "15:28:41 PDT"]
[Termination "jcmesafischer won by checkmate"]

1. Nf3 {[%clk 0:03:00.9]} 1... Nf6 {[%clk 0:02:58.5]} 2. c4 {[%clk 0:02:27.9]}
2... c5 {[%clk 0:02:55.9]} 3. g3 {[%clk 0:02:28]} 3... g6 {[%clk 0:02:54.9]} 4.
Bg2 {[%clk 0:02:28.3]} 4... Bg7 {[%clk 0:02:55.6]} 5. O-O {[%clk 0:02:28.7]}
5... O-O {[%clk 0:02:56.2]} 6. Nc3 {[%clk 0:02:28.3]} 6... Nc6 {[%clk
0:02:55.6]} 7. d4 {[%clk 0:02:28.3]} 7... cxd4 {[%clk 0:02:56.5]} 8. Nxd4 {[%clk
0:02:28.6]} 8... d6 {[%clk 0:02:57.2]} 9. Nxc6 {[%clk 0:02:25]} 9... bxc6 {[%clk
0:02:58.1]} 10. Bxc6 {[%clk 0:02:22.1]} 10... Rb8 {[%clk 0:02:58.7]} 11. Bf3
{[%clk 0:02:00.6]} 11... Qa5 {[%clk 0:02:40.9]} 12. Qd2 {[%clk 0:01:27.5]} 12...
Nd7 {[%clk 0:02:08.7]} 13. Nd5 {[%clk 0:01:19.5]} 13... Qd8 {[%clk 0:01:45.3]}
14. Rb1 {[%clk 0:01:18.7]} 14... Ne5 {[%clk 0:01:43.3]} 15. b3 {[%clk
0:01:06.9]} 15... Bf5 {[%clk 0:01:34.2]} 16. Rb2 {[%clk 0:00:54.7]} 16... Nxf3+
{[%clk 0:01:24]} 17. exf3 {[%clk 0:00:53.4]} 17... Bxb2 {[%clk 0:00:53.3]} 18.
Bxb2 {[%clk 0:00:54.3]} 18... f6 {[%clk 0:00:53.3]} 19. Re1 {[%clk 0:00:51.9]}
19... e5 {[%clk 0:00:52.8]} 20. Rd1 {[%clk 0:00:33.2]} 20... Be6 {[%clk
0:00:39]} 21. Nc3 {[%clk 0:00:23.8]} 21... Rb6 {[%clk 0:00:37.7]} 22. c5 {[%clk
0:00:20.7]} 22... Rc6 {[%clk 0:00:31]} 23. cxd6 {[%clk 0:00:20.7]} 23... Qd7
{[%clk 0:00:31.6]} 24. Ne4 {[%clk 0:00:16.7]} 24... Kg7 {[%clk 0:00:26.2]} 25.
b4 {[%clk 0:00:15.8]} 25... Rd8 {[%clk 0:00:24]} 26. Qe3 {[%clk 0:00:13.1]}
26... Qb7 {[%clk 0:00:16.9]} 27. Nxf6 {[%clk 0:00:11.9]} 27... Rcxd6 {[%clk
0:00:10.5]} 28. Rxd6 {[%clk 0:00:11]} 28... Rxd6 {[%clk 0:00:11.4]} 29. Ne8+
{[%clk 0:00:11.1]} 29... Kf8 {[%clk 0:00:08.3]} 30. Nxd6 {[%clk 0:00:10.9]}
30... Bh3 {[%clk 0:00:09]} 31. Qxe5 {[%clk 0:00:10.1]} 31... Qc7 {[%clk
0:00:05.1]} 32. Qe8# {[%clk 0:00:09.8]} 1-0

[Event "Late-Titled-Tuesday-Blitz-September-05-2023"]
[Site "Chess.com"]
[Date "2023.09.05"]
[Round "8"]
[White "jamengrand"]
[Black "santosalberto1987"]
[Result "0-1"]
[WhiteElo "2370"]
[BlackElo "2553"]
[TimeControl "180+1"]
[EndTime "15:28:54 PDT"]
[Termination "santosalberto1987 won on time"]

1. e4 {[%clk 0:03:00.9]} 1... e6 {[%clk 0:02:59.3]} 2. d4 {[%clk 0:03:00.6]}
2... d5 {[%clk 0:02:59.3]} 3. Nc3 {[%clk 0:03:00.5]} 3... Nf6 {[%clk 0:02:59.2]}
4. e5 {[%clk 0:03:00.7]} 4... Nfd7 {[%clk 0:02:58.4]} 5. f4 {[%clk 0:03:01.1]}
5... c5 {[%clk 0:02:59]} 6. Nf3 {[%clk 0:03:01.5]} 6... Nc6 {[%clk 0:02:59.5]}
7. Be3 {[%clk 0:03:01.7]} 7... Qb6 {[%clk 0:03:00]} 8. Na4 {[%clk 0:02:59.7]}
8... Qa5+ {[%clk 0:03:00]} 9. c3 {[%clk 0:02:59.7]} 9... b6 {[%clk 0:03:00.6]}
10. a3 {[%clk 0:02:55.7]} 10... c4 {[%clk 0:03:00.4]} 11. Be2 {[%clk 0:02:44.3]}
11... Ba6 {[%clk 0:03:00.2]} 12. O-O {[%clk 0:02:42.7]} 12... Bb5 {[%clk
0:02:59.9]} 13. b3 {[%clk 0:02:41.1]} 13... cxb3 {[%clk 0:02:51.7]} 14. Bxb5
{[%clk 0:02:29.8]} 14... Qxb5 {[%clk 0:02:50.9]} 15. Nb2 {[%clk 0:02:28.7]}
15... Na5 {[%clk 0:02:47.3]} 16. a4 {[%clk 0:02:19]} 16... Qc6 {[%clk
0:02:43.3]} 17. Rc1 {[%clk 0:02:12.7]} 17... Ba3 {[%clk 0:02:39.4]} 18. Rb1
{[%clk 0:01:47.3]} 18... Bxb2 {[%clk 0:02:09.7]} 19. Rxb2 {[%clk 0:01:47]} 19...
Nc4 {[%clk 0:02:10.3]} 20. Re2 {[%clk 0:01:38.3]} 20... Qxa4 {[%clk 0:02:10.1]}
21. f5 {[%clk 0:01:37.7]} 21... exf5 {[%clk 0:02:09.6]} 22. e6 {[%clk
0:01:36.6]} 22... fxe6 {[%clk 0:02:09.3]} 23. Ng5 {[%clk 0:01:32.5]} 23... O-O
{[%clk 0:01:55.8]} 24. Nxe6 {[%clk 0:01:23.3]} 24... Rfe8 {[%clk 0:01:53.9]} 25.
Nc7 {[%clk 0:01:23.3]} 25... Rxe3 {[%clk 0:00:59.7]} 26. Nxa8 {[%clk 0:01:13]}
26... Nf6 {[%clk 0:00:59.7]} 27. Nc7 {[%clk 0:00:40.8]} 27... a5 {[%clk
0:00:39.4]} 28. Rxe3 {[%clk 0:00:25.8]} 28... Nxe3 {[%clk 0:00:39.2]} 29. Qf3
{[%clk 0:00:25.6]} 29... Nxf1 {[%clk 0:00:37.5]} 30. Nxd5 {[%clk 0:00:24.2]}
30... b2 {[%clk 0:00:19.2]} 31. Nxf6+ {[%clk 0:00:14.5]} 31... gxf6 {[%clk
0:00:20.1]} 32. Qd5+ {[%clk 0:00:14.6]} 32... Kg7 {[%clk 0:00:17.9]} 33. Qxf5
{[%clk 0:00:03.4]} 33... Ne3 {[%clk 0:00:14.2]} 0-1

[Event "Late-Titled-Tuesday-Blitz-September-05-2023"]
[Site "Chess.com"]
[Date "2023.09.05"]
[Round "8"]
[White "Rinqed222"]
[Black "Marcin"]
[Result "0-1"]
[WhiteElo "2249"]
[BlackElo "2480"]
[TimeControl "180+1"]
[EndTime "15:28:56 PDT"]
[Termination "Marcin won on time"]

1. e4 {[%clk 0:03:00.9]} 1... c6 {[%clk 0:03:00.2]} 2. d4 {[%clk 0:03:00.8]}
2... d5 {[%clk 0:03:00.7]} 3. e5 {[%clk 0:03:01.5]} 3... Bf5 {[%clk 0:02:58.2]}
4. h4 {[%clk 0:03:01.2]} 4... a6 {[%clk 0:02:56.2]} 5. g4 {[%clk 0:02:52.5]}
5... Be6 {[%clk 0:02:55.9]} 6. Bd3 {[%clk 0:02:44.5]} 6... c5 {[%clk 0:02:48.5]}
7. c3 {[%clk 0:02:44]} 7... Nc6 {[%clk 0:02:46.4]} 8. Be3 {[%clk 0:02:42.7]}
8... cxd4 {[%clk 0:02:42]} 9. cxd4 {[%clk 0:02:41.7]} 9... Rc8 {[%clk
0:02:29.5]} 10. Nc3 {[%clk 0:02:38.2]} 10... f6 {[%clk 0:02:16]} 11. f4 {[%clk
0:02:30.9]} 11... fxe5 {[%clk 0:02:11.7]} 12. fxe5 {[%clk 0:02:28.9]} 12... g6
{[%clk 0:02:10.4]} 13. h5 {[%clk 0:02:25.7]} 13... gxh5 {[%clk 0:02:02.7]} 14.
Rxh5 {[%clk 0:02:24.3]} 14... Qd7 {[%clk 0:01:52.5]} 15. Bf5 {[%clk 0:02:18]}
15... b5 {[%clk 0:01:38.9]} 16. Qf3 {[%clk 0:01:44]} 16... Nb4 {[%clk
0:01:23.4]} 17. a3 {[%clk 0:01:12.7]} 17... Bxf5 {[%clk 0:01:22.4]} 18. Rxf5
{[%clk 0:01:06.1]} 18... Nh6 {[%clk 0:01:12]} 19. axb4 {[%clk 0:00:54.5]} 19...
Nxf5 {[%clk 0:01:09.6]} 20. gxf5 {[%clk 0:00:54.9]} 20... e6 {[%clk 0:01:07.1]}
21. fxe6 {[%clk 0:00:51.6]} 21... Qxe6 {[%clk 0:01:08]} 22. Nxd5 {[%clk
0:00:50.8]} 22... Rc2 {[%clk 0:00:57.5]} 23. Nf6+ {[%clk 0:00:26.7]} 23... Kd8
{[%clk 0:00:55.4]} 24. Qa8+ {[%clk 0:00:23.5]} 24... Rc8 {[%clk 0:00:54.3]} 25.
Qxa6 {[%clk 0:00:22.6]} 25... Bxb4+ {[%clk 0:00:54.1]} 26. Kf2 {[%clk
0:00:14.6]} 26... Rc2+ {[%clk 0:00:50.9]} 27. Ne2 {[%clk 0:00:13.1]} 27... Qf5+
{[%clk 0:00:50.1]} 28. Kg3 {[%clk 0:00:05.8]} 28... Qg6+ {[%clk 0:00:49.7]} 29.
Kf2 {[%clk 0:00:04.4]} 29... Qf5+ {[%clk 0:00:49.3]} 30. Kg3 {[%clk 0:00:04.7]}
30... Qg6+ {[%clk 0:00:49.2]} 31. Kf4 {[%clk 0:00:03.9]} 31... Qh6+ {[%clk
0:00:46.9]} 32. Ke4 {[%clk 0:00:04.4]} 32... Qg6+ {[%clk 0:00:46.4]} 33. Kd5
{[%clk 0:00:04.4]} 33... Qg2+ {[%clk 0:00:44.2]} 34. Ke6 {[%clk 0:00:04.2]}
34... Rc6+ {[%clk 0:00:42.8]} 35. Qxc6 {[%clk 0:00:02.8]} 35... Qxc6+ {[%clk
0:00:42.7]} 36. Kf5 {[%clk 0:00:03.4]} 36... Qf3+ {[%clk 0:00:41.9]} 37. Nf4
{[%clk 0:00:01.9]} 37... Kc8 {[%clk 0:00:21.1]} 38. Rc1+ {[%clk 0:00:01.5]}
38... Kb7 {[%clk 0:00:20.2]} 0-1

[Event "Late-Titled-Tuesday-Blitz-September-05-2023"]
[Site "Chess.com"]
[Date "2023.09.05"]
[Round "8"]
[White "DvaHrasta"]
[Black "buenamor1972"]
[Result "1-0"]
[WhiteElo "2511"]
[BlackElo "2340"]
[TimeControl "180+1"]
[EndTime "15:28:57 PDT"]
[Termination "DvaHrasta won on time"]

1. c4 {[%clk 0:03:00.9]} 1... Nf6 {[%clk 0:02:37.3]} 2. g3 {[%clk 0:03:00.4]}
2... e6 {[%clk 0:02:36.5]} 3. Bg2 {[%clk 0:03:00.3]} 3... d5 {[%clk 0:02:37.1]}
4. Nf3 {[%clk 0:03:00.4]} 4... Be7 {[%clk 0:02:36.7]} 5. O-O {[%clk 0:03:00.3]}
5... O-O {[%clk 0:02:37.3]} 6. d4 {[%clk 0:03:00.4]} 6... c6 {[%clk 0:02:37.3]}
7. Ne5 {[%clk 0:02:59.5]} 7... Nbd7 {[%clk 0:02:35.4]} 8. Nc3 {[%clk 0:02:59.3]}
8... Nxe5 {[%clk 0:02:31.5]} 9. dxe5 {[%clk 0:02:59.2]} 9... Nd7 {[%clk
0:02:32.1]} 10. cxd5 {[%clk 0:02:59]} 10... exd5 {[%clk 0:02:25.6]} 11. f4
{[%clk 0:02:57.1]} 11... Nc5 {[%clk 0:02:11.9]} 12. b4 {[%clk 0:02:52.1]} 12...
d4 {[%clk 0:01:52.1]} 13. Na4 {[%clk 0:02:23.7]} 13... Na6 {[%clk 0:01:42.7]}
14. Bd2 {[%clk 0:02:19.8]} 14... Nxb4 {[%clk 0:01:37.8]} 15. f5 {[%clk
0:02:10.5]} 15... Nd5 {[%clk 0:01:25.9]} 16. f6 {[%clk 0:02:09.4]} 16... gxf6
{[%clk 0:01:23.7]} 17. Bh6 {[%clk 0:02:02.1]} 17... fxe5 {[%clk 0:01:23.5]} 18.
Bxf8 {[%clk 0:01:59.6]} 18... Bxf8 {[%clk 0:01:15.1]} 19. Qd3 {[%clk 0:01:51.1]}
19... Bg7 {[%clk 0:01:03.1]} 20. Be4 {[%clk 0:01:43.9]} 20... h6 {[%clk
0:00:49.6]} 21. Qf3 {[%clk 0:01:43.3]} 21... Be6 {[%clk 0:00:48.1]} 22. Nc5
{[%clk 0:01:41.4]} 22... Qe7 {[%clk 0:00:46.6]} 23. Nxe6 {[%clk 0:01:35.7]}
23... fxe6 {[%clk 0:00:43.4]} 24. Qh5 {[%clk 0:01:24.2]} 24... Nf6 {[%clk
0:00:24.4]} 25. Qg6 {[%clk 0:01:23.3]} 25... Nxe4 {[%clk 0:00:22.5]} 26. Qxe4
{[%clk 0:01:23.2]} 26... Rf8 {[%clk 0:00:16.9]} 27. Rxf8+ {[%clk 0:01:22.7]}
27... Qxf8 {[%clk 0:00:17.4]} 28. Rf1 {[%clk 0:01:19.6]} 28... Qe7 {[%clk
0:00:17.6]} 29. a4 {[%clk 0:01:18.6]} 29... c5 {[%clk 0:00:16.3]} 30. Rc1 {[%clk
0:01:10.4]} 30... b6 {[%clk 0:00:15.5]} 31. a5 {[%clk 0:01:08.3]} 31... Qd7
{[%clk 0:00:13.6]} 32. a6 {[%clk 0:01:01.9]} 32... Qd5 {[%clk 0:00:12.5]} 33.
Qg6 {[%clk 0:00:53.2]} 33... e4 {[%clk 0:00:11.8]} 34. Rf1 {[%clk 0:00:41.4]}
34... Qd7 {[%clk 0:00:08.2]} 35. Qxe4 {[%clk 0:00:39.5]} 35... c4 {[%clk
0:00:08]} 36. Qa8+ {[%clk 0:00:33.6]} 36... Kh7 {[%clk 0:00:07.3]} 37. Qb7
{[%clk 0:00:33.7]} 37... Qxb7 {[%clk 0:00:05.6]} 38. axb7 {[%clk 0:00:33.6]}
38... Be5 {[%clk 0:00:06.1]} 39. Rf8 {[%clk 0:00:27.9]} 39... b5 {[%clk
0:00:01.7]} 40. Kf1 {[%clk 0:00:25.9]} 1-0

[Event "Late-Titled-Tuesday-Blitz-September-05-2023"]
[Site "Chess.com"]
[Date "2023.09.05"]
[Round "8"]
[White "CrushingKings"]
[Black "EsmeraldasAnderson03"]
[Result "1-0"]
[WhiteElo "2544"]
[BlackElo "2416"]
[TimeControl "180+1"]
[EndTime "15:28:59 PDT"]
[Termination "CrushingKings won on time"]

1. Nf3 {[%clk 0:02:48.8]} 1... d5 {[%clk 0:02:57.9]} 2. g3 {[%clk 0:02:49.2]}
2... c5 {[%clk 0:02:57.2]} 3. Bg2 {[%clk 0:02:49.5]} 3... Nf6 {[%clk 0:02:57.3]}
4. O-O {[%clk 0:02:49.2]} 4... h6 {[%clk 0:02:57.8]} 5. d4 {[%clk 0:02:48.3]}
5... cxd4 {[%clk 0:02:58.7]} 6. Nxd4 {[%clk 0:02:48.4]} 6... e5 {[%clk
0:02:59.4]} 7. Nb3 {[%clk 0:02:48.5]} 7... Nc6 {[%clk 0:03:00.1]} 8. c4 {[%clk
0:02:42.7]} 8... dxc4 {[%clk 0:03:01]} 9. Bxc6+ {[%clk 0:02:42.4]} 9... bxc6
{[%clk 0:03:00.6]} 10. Qxd8+ {[%clk 0:02:43.1]} 10... Kxd8 {[%clk 0:03:01.3]}
11. Na5 {[%clk 0:02:43]} 11... Kc7 {[%clk 0:02:45.1]} 12. Nxc4 {[%clk
0:02:42.4]} 12... Nd7 {[%clk 0:02:45.7]} 13. Bd2 {[%clk 0:02:32.6]} 13... f6
{[%clk 0:02:41.2]} 14. Ba5+ {[%clk 0:02:32.5]} 14... Nb6 {[%clk 0:02:40.7]} 15.
Nc3 {[%clk 0:02:32.6]} 15... Ba6 {[%clk 0:02:39.4]} 16. b3 {[%clk 0:02:20.8]}
16... Be7 {[%clk 0:02:26.1]} 17. Rac1 {[%clk 0:02:15.3]} 17... Kb7 {[%clk
0:02:25.6]} 18. Ne4 {[%clk 0:01:58.7]} 18... Rhd8 {[%clk 0:02:18.1]} 19. Rfd1
{[%clk 0:01:52]} 19... Bxc4 {[%clk 0:01:40.6]} 20. bxc4 {[%clk 0:01:35]} 20...
f5 {[%clk 0:01:21.2]} 21. Nd2 {[%clk 0:01:16.7]} 21... Bg5 {[%clk 0:00:58.3]}
22. e3 {[%clk 0:00:46.4]} 22... Rd3 {[%clk 0:00:20.6]} 23. Nb3 {[%clk
0:00:36.5]} 23... Rxd1+ {[%clk 0:00:12]} 24. Rxd1 {[%clk 0:00:36.5]} 24... Rd8
{[%clk 0:00:12.6]} 25. Rxd8 {[%clk 0:00:33.8]} 25... Bxd8 {[%clk 0:00:13.5]} 26.
c5 {[%clk 0:00:34.2]} 26... Ka6 {[%clk 0:00:14]} 27. cxb6 {[%clk 0:00:34.1]}
27... axb6 {[%clk 0:00:14.6]} 28. Bc3 {[%clk 0:00:32.6]} 28... Bc7 {[%clk
0:00:15]} 29. Nd2 {[%clk 0:00:29.8]} 29... g6 {[%clk 0:00:12.4]} 30. Nf3 {[%clk
0:00:29.7]} 30... e4 {[%clk 0:00:12.8]} 31. Nh4 {[%clk 0:00:30.2]} 31... Kb5
{[%clk 0:00:11.1]} 32. Nxg6 {[%clk 0:00:30.4]} 32... Kc4 {[%clk 0:00:11]} 33.
Bg7 {[%clk 0:00:29.2]} 33... h5 {[%clk 0:00:09.7]} 34. Ne7 {[%clk 0:00:29.2]}
34... c5 {[%clk 0:00:08.4]} 35. Nxf5 {[%clk 0:00:28.6]} 35... b5 {[%clk
0:00:08.1]} 36. Kf1 {[%clk 0:00:26]} 36... Kb4 {[%clk 0:00:08.7]} 37. Bf8 {[%clk
0:00:18.5]} 37... Bb6 {[%clk 0:00:06.9]} 38. Nd6 {[%clk 0:00:19.1]} 38... Bc7
{[%clk 0:00:03.2]} 39. Nxe4 {[%clk 0:00:19.1]} 39... Bb6 {[%clk 0:00:02.7]} 40.
Ke2 {[%clk 0:00:18.2]} 1-0

[Event "Late-Titled-Tuesday-Blitz-September-05-2023"]
[Site "Chess.com"]
[Date "2023.09.05"]
[Round "8"]
[White "jk13"]
[Black "Matibar"]
[Result "1-0"]
[WhiteElo "2691"]
[BlackElo "2866"]
[TimeControl "180+1"]
[EndTime "15:29:01 PDT"]
[Termination "jk13 won by resignation"]

1. e4 {[%clk 0:03:00.9]} 1... e6 {[%clk 0:02:59.8]} 2. d4 {[%clk 0:03:00.2]}
2... d5 {[%clk 0:03:00.7]} 3. Nd2 {[%clk 0:03:00.5]} 3... dxe4 {[%clk
0:03:01.1]} 4. Nxe4 {[%clk 0:03:01.4]} 4... Nd7 {[%clk 0:03:01.4]} 5. Nf3 {[%clk
0:03:01.8]} 5... Ngf6 {[%clk 0:03:02.2]} 6. Nxf6+ {[%clk 0:03:02.4]} 6... Nxf6
{[%clk 0:03:03]} 7. g3 {[%clk 0:03:03.3]} 7... b6 {[%clk 0:02:58.2]} 8. Bg2
{[%clk 0:03:03.5]} 8... Bb7 {[%clk 0:02:58.1]} 9. O-O {[%clk 0:03:04]} 9... Be7
{[%clk 0:02:56.8]} 10. c4 {[%clk 0:03:04.2]} 10... O-O {[%clk 0:02:57.1]} 11.
Qe2 {[%clk 0:03:04.9]} 11... c5 {[%clk 0:02:47.3]} 12. Rd1 {[%clk 0:03:04.2]}
12... cxd4 {[%clk 0:02:47.4]} 13. Nxd4 {[%clk 0:03:00.8]} 13... Qc8 {[%clk
0:02:44.2]} 14. b3 {[%clk 0:02:36.4]} 14... Rd8 {[%clk 0:02:21.6]} 15. Bb2
{[%clk 0:02:36.4]} 15... Bxg2 {[%clk 0:02:21]} 16. Kxg2 {[%clk 0:02:36.4]} 16...
Qb7+ {[%clk 0:02:21.2]} 17. Qf3 {[%clk 0:02:35.8]} 17... Qxf3+ {[%clk
0:01:53.9]} 18. Kxf3 {[%clk 0:02:36.7]} 18... Rac8 {[%clk 0:01:45.9]} 19. g4
{[%clk 0:01:41.5]} 19... Kf8 {[%clk 0:01:36.8]} 20. g5 {[%clk 0:01:36]} 20...
Ne8 {[%clk 0:01:26.1]} 21. h4 {[%clk 0:01:36.2]} 21... Nd6 {[%clk 0:01:21.8]}
22. Rd2 {[%clk 0:01:22.8]} 22... Nf5 {[%clk 0:01:01.5]} 23. Kg4 {[%clk
0:00:50.2]} 23... Nxd4 {[%clk 0:00:36.5]} 24. Bxd4 {[%clk 0:00:45.5]} 24... Bb4
{[%clk 0:00:27.1]} 25. Rdd1 {[%clk 0:00:44.1]} 25... Rxd4+ {[%clk 0:00:26.4]}
26. Rxd4 {[%clk 0:00:44]} 26... Bc3 {[%clk 0:00:26.9]} 27. Rad1 {[%clk
0:00:44.8]} 27... Bxd4 {[%clk 0:00:27.3]} 28. Rxd4 {[%clk 0:00:45.7]} 28... Ke7
{[%clk 0:00:27.8]} 29. Kf4 {[%clk 0:00:44.4]} 29... Rc5 {[%clk 0:00:26.9]} 30.
Ke4 {[%clk 0:00:43.4]} 30... f6 {[%clk 0:00:26.7]} 31. f4 {[%clk 0:00:43]} 31...
a5 {[%clk 0:00:22.7]} 32. a3 {[%clk 0:00:42.6]} 32... b5 {[%clk 0:00:20.9]} 33.
b4 {[%clk 0:00:31.2]} 33... axb4 {[%clk 0:00:20.5]} 34. axb4 {[%clk 0:00:32.1]}
34... Rxc4 {[%clk 0:00:20.7]} 35. Rxc4 {[%clk 0:00:32.7]} 35... bxc4 {[%clk
0:00:21.6]} 36. Kd4 {[%clk 0:00:33.4]} 36... h5 {[%clk 0:00:08.6]} 37. Kxc4
{[%clk 0:00:30.2]} 37... e5 {[%clk 0:00:08.4]} 38. gxf6+ {[%clk 0:00:18.3]}
38... gxf6 {[%clk 0:00:08.4]} 39. fxe5 {[%clk 0:00:17.4]} 39... fxe5 {[%clk
0:00:06.4]} 40. Kd5 {[%clk 0:00:17.9]} 40... Kd7 {[%clk 0:00:05.3]} 41. Kxe5
{[%clk 0:00:18.2]} 41... Kc6 {[%clk 0:00:06.2]} 42. Kf5 {[%clk 0:00:18.9]} 42...
Kb5 {[%clk 0:00:06.9]} 43. Kg5 {[%clk 0:00:19.7]} 43... Kxb4 {[%clk 0:00:07.8]}
44. Kxh5 {[%clk 0:00:20.5]} 44... Kc5 {[%clk 0:00:08.7]} 45. Kg6 {[%clk
0:00:21.4]} 45... Kd6 {[%clk 0:00:09.4]} 46. h5 {[%clk 0:00:21.2]} 46... Ke7
{[%clk 0:00:09.7]} 47. Kg7 {[%clk 0:00:21.9]} 1-0